[Event "BLR-chW U20 2019"]
[Site "Kobryn"]
[Date "2019.05.19"]
[Round "9.1"]
[White "Mitskevich, Yauheniya"]
[Black "Zeliantsova, Kseniya"]
[Result "1/2-1/2"]
[ECO "B43"]
[WhiteElo "1985"]
[BlackElo "2017"]
[Annotator "NA RC"]
[PlyCount "62"]
[EventDate "2019.05.11"]
[EventType "tourn"]
[EventCountry "BLR"]
[SourceTitle "playchess.com"]
[Source "ChessBase"]
[SourceQuality "1"]
[TimeControl "40/5400+30:1800+30"]

1. e4 {[%emt 0:00:00]} c5 {[%emt 0:00:00]} 2. Nf3 {[%emt 0:00:00]} e6 {[%emt 0:00:00]} 3. d4 {[%emt 0:00:00]} cxd4 {[%emt 0:00:00]} 4. Nxd4 {[%emt 0:00:00]} a6 {[%emt 0:00:00]} 5. Nc3 {[%emt 0:00:10]} b5 {[%emt 0:00:07]} 6. a3 {[%emt 0:00:09]} Qc7 {[%emt 0:00:36]} 7. Be2 {[%emt 0:01:07]} Bb7 {[%emt 0:00:18]} 8. O-O {[%emt 0:00:43]} Nf6 {[%emt 0:00:24]} 9. Bf3 {[%emt 0:02:32]} d6 {[%emt 0:02:19]} 10. g3 {[%emt 0:02:09]} Be7 {[%emt 0:00:23]} 11. Bg2 {[%emt 0:00:19]} O-O {[%emt 0:01:19]} 12. Be3 {[%emt 0:02:49]} Nbd7 {[%emt 0:01:56]} 13. Nb3 {[%emt 0:00:24]} Nc5 {[%emt 0:07:05]} 14. Nd2 {[%emt 0:01:43]} Rac8 {[%emt 0:02:25]} 15. Qe2 {[%emt 0:02:31]} Qb8 {[%emt 0:09:08]} 16. f4 {[%emt 0:02:10]} Qa8 {[%emt 0:01:49]} 17. Bf2 {[%emt 0:00:26]} Nfd7 {[%emt 0:05:57]} 18. Bf3 {[%emt 0:01:10]} Bf6 $15 {[%emt 0:03:39]} 19. Nd1 {[%emt 0:05:47]} Na4 {[%emt 0:13:31]} 20. c3 {[%emt 0:04:14]} e5 {[%emt 0:06:20]} 21. f5 {[%emt 0:06:14]} Bg5 {[%emt 0:00:52]} 22. Be3 {[%emt 0:01:08]} Bxe3+ {[%emt 0:00:21]} 23. Qxe3 {[%emt 0:00:09]} d5 {[%emt 0:01:32]} 24. exd5 {[%emt 0:05:19]} Bxd5 {[%emt 0:00:11]} 25. Ne4 {[%emt 0:00:34]} Ndc5 {[%emt 0:02:00]} 26. Ndf2 {[%emt 0:03:16]} Nxb2 {[%emt 0:03:04]} 27. Nf6+ {[%emt 0:15:45]} gxf6 {[%emt 0:01:11]} 28. Ng4 {[%emt 0:00:13]} Nd7 {[%emt 0:00:59]} 29. Nxf6+ {[%emt 0:00:55]} Nxf6 {[%emt 0:00:20]} 30. Qg5+ {[%emt 0:00:06]} Kh8 {[%emt 0:00:04]} 31. Qxf6+ {[%emt 0:00:06]} Kg8 {[%emt 0:00:04]} 1/2-1/2

[Event "BLR-chW U20 2019"]
[Site "Kobryn"]
[Date "2019.05.19"]
[Round "9.2"]
[White "Shaban, Aliaksandra"]
[Black "Kuzich, Aryna"]
[Result "0-1"]
[ECO "B29"]
[WhiteElo "1652"]
[BlackElo "1800"]
[Annotator "NA RC"]
[PlyCount "128"]
[EventDate "2019.05.11"]
[EventType "tourn"]
[EventCountry "BLR"]
[SourceTitle "playchess.com"]
[Source "ChessBase"]
[SourceQuality "1"]
[TimeControl "40/5400+30:1800+30"]

1. e4 c5 2. Nf3 Nf6 3. e5 Nd5 4. Nc3 e6 5. Nxd5 exd5 6. d4 Nc6 7. dxc5 Bxc5 8. Qxd5 Qb6 9. Bc4 Bxf2+ 10. Ke2 O-O 11. Rf1 {B29: Sicilian: 2 Nf3 Nf6 (Nimzowitsch Variation)} Nb4 (11... Bc5 12. Ng5 Nxe5 13. Nxf7 Nxf7 14. Rxf7 Qe6+ 15. Qxe6 dxe6 16. Rxf8+ Kxf8 17. Bg5 Bd7 18. Rf1+ Ke8 {1-0 (37) Shirov,A (2709)-Markos,J (2602) Tromsoe 2014}) 12. Qe4 d5 13. exd6 Bd7 14. Rxf2 Rae8 15. Ne5 Bb5 $146 ({Predecessor:} 15... Qxd6 16. Rxf7 Bg4+ 17. Kf2 Be6 18. Bxe6 Rxe6 19. Rxf8+ Qxf8+ {1-0 (38) Kozak,A (2076)-Mammadov,V (2009) Bialystok 2017}) 16. Bf4 Nc6 17. b3 Bxc4+ 18. bxc4 Qb2 19. d7 Qxa1 20. dxe8=Q Rxe8 21. Rf1 Qb2 22. Rd1 Nxe5 23. Bxe5 Qxe5 $11 24. Qxe5 Rxe5+ 25. Kf3 g6 26. Rd3 Rc5 27. Rb3 b6 28. Rb4 Kf8 29. Ke4 Ke7 30. c3 Kd6 31. Kd3 Rh5 32. h3 Rg5 33. Rb2 Rg3+ 34. Kd4 f5 35. Rf2 h5 36. a3 Rg5 37. Ke3 Rg3+ 38. Kd4 h4 39. a4 Rg5 40. Rd2 Rg3 41. Rf2 Kc6 42. Rf4 Rxg2 43. Rxh4 Rd2+ 44. Ke5 Rd3 45. Kf6 Rg3 46. Rh8 f4 47. Rf8 Rxh3 48. Kxg6 Rg3+ 49. Kf5 Rxc3 50. Ke5 Kc5 51. Rf7 a5 52. Kxf4 Rxc4+ 53. Ke3 Rxa4 54. Kd3 Kb4 55. Rf6 b5 56. Kc2 Ra2+ 57. Kd3 Kb3 58. Rf3 b4 59. Kd4+ Ka4 60. Rd3 b3 61. Rd1 b2 62. Kc3 Ra1 63. Rd4+ Ka3 64. Rd5 Rc1+ 0-1

[Event "BLR-chW U20 2019"]
[Site "Kobryn"]
[Date "2019.05.19"]
[Round "9.3"]
[White "Poliakova, Varvara"]
[Black "Ilyuchyk, Yana"]
[Result "0-1"]
[ECO "B67"]
[WhiteElo "1900"]
[BlackElo "2137"]
[Annotator "NA RC"]
[PlyCount "88"]
[EventDate "2019.05.11"]
[EventType "tourn"]
[EventCountry "BLR"]
[SourceTitle "playchess.com"]
[Source "ChessBase"]
[SourceQuality "1"]
[TimeControl "40/5400+30:1800+30"]

1. e4 {[%emt 0:00:00]} c5 {[%emt 0:00:00]} 2. Nf3 {[%emt 0:00:00]} Nc6 {[%emt 0:00:00]} 3. d4 {[%emt 0:00:00]} cxd4 {[%emt 0:00:00]} 4. Nxd4 {[%emt 0:00:00]} Nf6 {[%emt 0:00:00]} 5. Nc3 {[%emt 0:00:00]} d6 {[%emt 0:00:00]} 6. Bg5 {[%emt 0:00:07]} e6 {[%emt 0:00:00]} 7. Qd2 {[%emt 0:00:24]} a6 {[%emt 0:00:00]} 8. O-O-O {[%emt 0:00:49]} Bd7 {[%emt 0:00:09]} 9. f4 {[%emt 0:01:43]} b5 {[%emt 0:00:41]} 10. Nxc6 {[%emt 0:05:21]} Bxc6 {[%emt 0:00:08]} 11. e5 {[%emt 0:00:32]} dxe5 {[%emt 0:04:53]} 12. Qxd8+ {[%emt 0:00:41] B67: Sicilian: Richter-Rauzer: 7...a6 8 0-0-0 Bd7, lines without 9 f4 Be7} (12. Qe3 Qc7 13. fxe5 Nd7 14. Bf4 Bc5 15. Qg3 b4 16. Qxg7 Rf8 17. Ne2 Be4 18. Rd2 b3 19. axb3 Bb4 {½-½ (48) Olafsson,T (2196)-Thorfinnsson,B (2433) Reykjavik 2018}) 12... Rxd8 {[%emt 0:00:04]} 13. Rxd8+ {[%emt 0:00:08]} Kxd8 {[%emt 0:00:04]} 14. fxe5 {[%emt 0:00:06]} h6 {[%emt 0:00:07]} 15. Bxf6+ {[%emt 0:13:49]} gxf6 {[%emt 0:00:05]} 16. exf6 {[%emt 0:00:05]} Bc5 {[%emt 0:09:43]} 17. Bd3 {[%emt 0:02:19]} Bxg2 {[%emt 0:02:37]} 18. Rd1 {[%emt 0:00:11]} Kc7 {[%emt 0:01:04]} 19. a4 $146 {[%emt 0:05:56]} ({Predecessor:} 19. Be4 Rg8 {½-½ (52) Valantiejus,V (2159)-Butvilas,A (1777) Kaunas 2018}) 19... b4 {[%emt 0:01:57]} 20. Ne2 {[%emt 0:02:50]} Rd8 {[%emt 0:06:16]} 21. Ng3 {[%emt 0:05:26]} Bd4 {[%emt 0:03:58]} 22. Re1 {[%emt 0:02:16]} a5 {[%emt 0:03:00]} 23. Be4 {[%emt 0:05:20]} Bh3 {[%emt 0:02:53]} 24. Bf3 {[%emt 0:06:48]} Bxf6 {[%emt 0:01:26]} 25. Re4 {[%emt 0:00:22]} Rd4 {[%emt 0:01:20]} 26. Rxd4 {[%emt 0:05:48]} Bxd4 {[%emt 0:00:04]} 27. Ne2 {[%emt 0:01:16]} Be3+ {[%emt 0:02:02]} 28. Kd1 {[%emt 0:00:19]} e5 {[%emt 0:01:35]} 29. c3 {[%emt 0:02:15]} bxc3 {[%emt 0:02:33]} 30. Nxc3 $19 {[%emt 0:00:13]} Bg1 {[%emt 0:03:44]} 31. Nb5+ {[%emt 0:02:25]} Kb6 {[%emt 0:04:02]} 32. Nd6 {[%emt 0:00:24]} Be6 {[%emt 0:00:21]} 33. h4 {[%emt 0:02:59]} Bc5 {[%emt 0:01:43]} 34. Ne4 {[%emt 0:00:48]} Bb3+ {[%emt 0:00:22]} 35. Kd2 {[%emt 0:02:26]} Bxa4 {[%emt 0:03:05]} 36. Nf6 {[%emt 0:00:27]} Bc6 {[%emt 0:04:58]} 37. Bxc6 {[%emt 0:03:10]} Kxc6 {[%emt 0:00:05]} 38. Ng4 {[%emt 0:00:04]} Kd5 {[%emt 0:00:45]} 39. Nxh6 {[%emt 0:00:06]} Ke6 {[%emt 0:00:08]} 40. Ng4 {[%emt 0:00:00]} f5 {[%emt 0:00:00]} 41. Nh2 {[%emt 0:01:13]} e4 {[%emt 0:03:23]} 42. Nf1 {[%emt 0:00:46]} f4 {[%emt 0:01:40]} 43. Nh2 {[%emt 0:00:21]} Kf5 {[%emt 0:00:16]} 44. b3 {[%emt 0:00:36]} f3 {[%emt 0:01:49]} 0-1

[Event "BLR-chW U20 2019"]
[Site "Kobryn"]
[Date "2019.05.19"]
[Round "9.4"]
[White "Staravoitava, Hanna"]
[Black "Tarasenka, Aliaksandra"]
[Result "0-1"]
[ECO "B20"]
[WhiteElo "1733"]
[BlackElo "1875"]
[Annotator "NA RC"]
[PlyCount "114"]
[EventDate "2019.05.11"]
[EventType "tourn"]
[EventCountry "BLR"]
[SourceTitle "playchess.com"]
[Source "ChessBase"]
[SourceQuality "1"]
[TimeControl "40/5400+30:1800+30"]

1. e4 {[%emt 0:00:00]} c5 {[%emt 0:00:00]} 2. g3 {[%emt 0:01:02]} Nc6 {[%emt 0:00:03]} 3. Bg2 {[%emt 0:00:07]} g6 {[%emt 0:00:07]} 4. Ne2 {[%emt 0:00:11]} Bg7 {[%emt 0:00:11]} 5. O-O {[%emt 0:00:19]} e6 {[%emt 0:00:07]} 6. c3 {[%emt 0:00:47]} Nge7 {[%emt 0:00:34]} 7. d3 {[%emt 0:02:03]} d5 {[%emt 0:00:35]} 8. Na3 {[%emt 0:05:31]} O-O {[%emt 0:01:04]} 9. Nc2 {[%emt 0:02:35]} d4 {[%emt 0:03:22]} 10. cxd4 {[%emt 0:05:31]} cxd4 {[%emt 0:02:08]} 11. b4 {[%emt 0:01:32]} b5 {[%emt 0:06:48]} 12. a4 {[%emt 0:05:24]} Rb8 {[%emt 0:03:32]} 13. axb5 {[%emt 0:05:45]} Rxb5 {[%emt 0:00:22]} 14. Bd2 {[%emt 0:00:33]} e5 {[%emt 0:09:49]} 15. Na3 {[%emt 0:00:32]} Rxb4 {[%emt 0:02:39]} 16. Bxb4 {[%emt 0:00:16]} Nxb4 {[%emt 0:00:03]} 17. Qb3 $11 {[%emt 0:04:23]} (17. Qa4 $14 Nec6 18. f4) 17... a5 {[%emt 0:07:34]} 18. Rfc1 {[%emt 0:11:01]} Nec6 {[%emt 0:06:31]} 19. Nc4 {[%emt 0:14:02]} Be6 {[%emt 0:04:54]} 20. Qb1 {[%emt 0:00:56]} Bh6 {[%emt 0:13:56]} 21. Rd1 {[%emt 0:07:54]} Nxd3 {[%emt 0:08:16]} 22. Qb5 {[%emt 0:12:14]} Bxc4 {[%emt 0:02:27]} 23. Qxc4 {[%emt 0:00:11]} Ndb4 {[%emt 0:00:42]} 24. Nc1 {[%emt 0:02:02]} Qb6 {[%emt 0:03:43]} 25. Nb3 {[%emt 0:01:50]} Rb8 {[%emt 0:08:34]} 26. Bf1 {[%emt 0:01:22]} Bf8 {[%emt 0:03:37]} 27. h4 {[%emt 0:05:40]} h5 {[%emt 0:01:13]} 28. Ra4 {[%emt 0:02:47]} Rd8 {[%emt 0:03:02]} 29. Nc1 {[%emt 0:01:17]} d3 {[%emt 0:02:49]} 30. Nxd3 {[%emt 0:00:54]} Bc5 {[%emt 0:03:30]} 31. Be2 {[%emt 0:01:39]} Nxd3 {[%emt 0:00:36]} 32. Rxd3 {[%emt 0:01:03]} Bxf2+ {[%emt 0:00:41]} 33. Kg2 {[%emt 0:00:04]} Rxd3 {[%emt 0:00:45]} 34. Qxd3 {[%emt 0:00:05]} Bd4 {[%emt 0:00:30]} 35. Qb5 {[%emt 0:00:30]} Kf8 {[%emt 0:01:44]} 36. Kh3 {[%emt 0:02:35]} Ke7 {[%emt 0:00:20]} 37. Qxb6 {[%emt 0:00:25]} Bxb6 {[%emt 0:00:04]} 38. g4 {[%emt 0:00:55]} hxg4+ {[%emt 0:00:09]} 39. Kxg4 {[%emt 0:00:21]} Nd4 {[%emt 0:01:31]} 40. Bd3 {[%emt 0:00:00]} Bc7 {[%emt 0:00:00]} 41. Ra2 {[%emt 0:08:14]} Ne6 {[%emt 0:03:16]} 42. Rd2 {[%emt 0:05:28]} Bd6 {[%emt 0:03:28]} 43. Bc4 {[%emt 0:05:45]} a4 {[%emt 0:04:15]} 44. Bxe6 {[%emt 0:00:25]} Kxe6 {[%emt 0:00:21]} 45. Rf2 {[%emt 0:02:08]} a3 {[%emt 0:01:16]} 46. h5 {[%emt 0:02:08]} gxh5+ {[%emt 0:01:14]} 47. Kxh5 {[%emt 0:00:05]} Bc5 {[%emt 0:00:45]} 48. Rc2 {[%emt 0:00:21]} Kd6 {[%emt 0:00:51]} 49. Rc4 {[%emt 0:00:22]} Kc6 {[%emt 0:00:42]} 50. Ra4 {[%emt 0:00:08]} Kb5 {[%emt 0:00:14]} 51. Ra8 {[%emt 0:00:22]} Kc4 {[%emt 0:00:24]} 52. Kg5 {[%emt 0:00:43]} Kb3 {[%emt 0:00:37]} 53. Kf6 {[%emt 0:01:16]} Bd4 {[%emt 0:00:31]} 54. Rb8+ {[%emt 0:01:57]} Kc2 {[%emt 0:00:47]} 55. Ra8 {[%emt 0:01:40]} Bb2 {[%emt 0:00:49]} 56. Rxa3 {[%emt 0:00:09]} Bxa3 {[%emt 0:00:04]} 57. Kxe5 {[%emt 0:00:10]} Bb2+ {[%emt 0:00:09] Kd4 [%clk 0:00:00]} 0-1

[Event "BLR-chW U20 2019"]
[Site "Kobryn"]
[Date "2019.05.19"]
[Round "9.5"]
[White "Dolbieva, Ksenia"]
[Black "Stashis, Anna"]
[Result "1/2-1/2"]
[ECO "D31"]
[WhiteElo "1847"]
[BlackElo "1902"]
[Annotator "NA RC"]
[PlyCount "134"]
[EventDate "2019.05.11"]
[EventType "tourn"]
[EventCountry "BLR"]
[SourceTitle "playchess.com"]
[Source "ChessBase"]
[SourceQuality "1"]
[TimeControl "40/5400+30:1800+30"]

1. d4 {[%emt 0:00:00]} d5 {[%emt 0:00:00]} 2. c4 {[%emt 0:00:00]} e6 {[%emt 0:00:00]} 3. Nc3 {[%emt 0:00:00]} c6 {[%emt 0:00:00]} 4. cxd5 {[%emt 0:00:14]} exd5 {[%emt 0:00:11]} 5. Nf3 {[%emt 0:00:05]} Bf5 {[%emt 0:03:28]} 6. Bf4 {[%emt 0:01:30]} Qb6 {[%emt 0:25:02]} 7. Na4 {[%emt 0:13:09] D31: Queen's Gambit Declined: Semi-Slav without ...Nf6 (+ Marshall Gambit and Noteboom) and Exchange Variation lines without ...Nf6} (7. Qc1 Nf6 8. e3 Nbd7 9. Nh4 Be6 10. Bd3 Nh5 11. Bg3 g6 12. Nf3 Be7 13. Bh4 Qd8 14. Bxe7 Qxe7 15. Qc2 O-O 16. O-O Kh8 17. b4 Rac8 18. Qb2 Ng7 19. b5 cxb5 20. Bxb5 Nb6 21. a4 f6 22. Nd2 Nf5 {½-½ (22) Gonda,L (2448)-Ribli,Z (2585) Hungary 2005}) 7... Qa5+ {[%emt 0:07:08]} 8. Bd2 {[%emt 0:00:16]} Qc7 {[%emt 0:00:13]} 9. e3 {[%emt 0:01:09]} Nf6 {[%emt 0:00:17]} 10. Be2 $146 {[%emt 0:03:59]} ({Predecessor:} 10. Nc3 Bd6 11. g3 Nbd7 12. Bg2 O-O 13. O-O Ne4 14. Nxe4 Bxe4 15. Ne1 {0-1 (34) Richter,K (1352)-Janke,J (1587) Verden/Aller 2017}) 10... Bd6 {[%emt 0:05:14]} 11. O-O {[%emt 0:05:31]} Qe7 {[%emt 0:17:31]} 12. Rc1 {[%emt 0:08:12]} Ne4 {[%emt 0:03:54]} 13. Nc3 {[%emt 0:16:23]} Nd7 {[%emt 0:33:32]} 14. Nxe4 {[%emt 0:01:18]} dxe4 {[%emt 0:00:00]} 15. Ne1 {[%emt 0:00:36]} Qh4 {[%emt 0:00:00]} 16. f4 {[%emt 0:03:16]} Nf6 {[%emt 0:00:00]} 17. g3 {[%emt 0:11:57]} Qh3 {[%emt 0:00:00]} 18. Rf2 {[%emt 0:01:09]} Ng4 {[%emt 0:00:00]} 19. Bxg4 {[%emt 0:05:54]} Bxg4 {[%emt 0:00:00]} 20. Qb3 {[%emt 0:01:00]} Rb8 {[%emt 0:00:00]} 21. d5 {[%emt 0:03:08]} O-O {[%emt 0:00:00]} 22. Qc4 {[%emt 0:01:46]} Rfe8 {[%emt 0:00:00]} 23. dxc6 {[%emt 0:02:17]} bxc6 {[%emt 0:00:00]} 24. Qxc6 {[%emt 0:01:44]} Re6 {[%emt 0:02:44]} 25. Qa6 {[%emt 0:01:06]} h5 {[%emt 0:01:48]} 26. Rc6 {[%emt 0:03:29]} Bf8 {[%emt 0:00:46]} 27. Bc3 {[%emt 0:01:51]} Rd8 {[%emt 0:00:45]} 28. Bd4 {[%emt 0:01:49]} h4 {[%emt 0:00:19]} 29. gxh4 {[%emt 0:04:49]} Be7 {[%emt 0:00:17]} 30. Rxe6 {[%emt 0:00:54]} Bxe6 {[%emt 0:00:11]} 31. Qf1 {[%emt 0:01:59]} Qxh4 {[%emt 0:00:24]} 32. Ng2 {[%emt 0:02:31]} Qg4 {[%emt 0:00:47]} 33. f5 {[%emt 0:00:15]} Bxa2 {[%emt 0:00:55]} 34. Rf4 {[%emt 0:00:34] [#]} Qg5 {[%emt 0:00:29]} (34... Qh5 $1 $17 35. f6 Bxf6 36. Rxf6 gxf6 37. Qxf6 Qd1+ 38. Kf2 {[#]} Qf3+ $1 {[%mdl 512]} 39. Qxf3 exf3) 35. Rxe4 {[%emt 0:00:36]} Bf6 {[%emt 0:00:20]} 36. h4 {[%emt 0:01:12]} Qh6 {[%emt 0:00:07]} 37. Qf4 {[%emt 0:00:39]} Qxf4 {[%emt 0:00:42]} 38. Rxf4 {[%emt 0:00:04]} Bxd4 {[%emt 0:00:39]} 39. Rxd4 {[%emt 0:00:03]} Rxd4 {[%emt 0:01:03]} 40. exd4 {[%emt 0:00:00]} Kf8 {[%emt 0:00:00]} 41. Kf2 {[%emt 0:00:45]} Ke7 {[%emt 0:03:12]} 42. Kg3 {[%emt 0:01:02]} Kd6 {[%emt 0:06:09] [#]} 43. Ne3 {[%emt 0:01:00]} (43. Nf4 $1 $18) 43... f6 {[%emt 0:00:47]} 44. Kf4 {[%emt 0:01:27]} Bf7 {[%emt 0:01:21]} 45. Ke4 {[%emt 0:01:14]} Bg8 {[%emt 0:02:13]} 46. b4 {[%emt 0:00:24]} Ba2 {[%emt 0:05:46]} 47. d5 {[%emt 0:02:06]} Bb1+ {[%emt 0:00:09]} 48. Kd4 {[%emt 0:00:05]} g6 {[%emt 0:00:17]} 49. fxg6 {[%emt 0:02:28]} Bxg6 {[%emt 0:00:06]} 50. Ng4 {[%emt 0:00:50]} f5 {[%emt 0:02:01]} 51. Ne5 {[%emt 0:00:05]} Bh5 {[%emt 0:04:15]} 52. Nc4+ {[%emt 0:00:38]} Kc7 {[%emt 0:00:12]} 53. Ke5 {[%emt 0:00:08]} Bf7 {[%emt 0:00:43]} 54. Nd6 {[%emt 0:00:23]} f4 {[%emt 0:01:43]} 55. Nb5+ {[%emt 0:02:33]} Kb6 {[%emt 0:00:43]} 56. Nd4 {[%emt 0:00:05]} (56. d6 $142 Kc6 57. Nxa7+ Kd7 58. Kxf4 Kxd6 59. Nb5+ Ke6 60. Kg5) 56... Kc7 {[%emt 0:03:00]} 57. Nf3 {[%emt 0:02:25]} Bh5 {[%emt 0:00:50]} 58. Kxf4 {[%emt 0:02:53]} Kd6 {[%emt 0:00:15]} 59. Ke4 {[%emt 0:00:45]} Bf7 {[%emt 0:00:09]} 60. Kd4 {[%emt 0:01:53]} Bxd5 {[%emt 0:00:09]} 61. Ng5 $18 {[%emt 0:02:47]} (61. h5 Bf7 62. h6) 61... Bc6 {[%emt 0:03:21]} 62. Nf7+ {[%emt 0:06:51]} Ke7 {[%emt 0:00:46]} 63. Ne5 {[%emt 0:00:04]} Ba4 {[%emt 0:03:10]} 64. Kc5 {[%emt 0:00:07]} Kf6 {[%emt 0:00:13]} 65. Nf3 {[%emt 0:06:44]} Kg6 {[%emt 0:00:46]} 66. b5 {[%emt 0:04:04]} Kh5 {[%emt 0:00:16]} 67. Kb4 {[%emt 0:00:29]} Bd1 {[%emt 0:00:19]} 1/2-1/2